Cogmind - Beta 11 X7 @@@ ROGUE MODE // 2021.12.05 @ 11:36:13 // AFD2021/Volatile Player: kasaphescent Result: Destroyed by D-53 Grenadier with Mini Grenade Launcher Performance ------------- Evolutions (0) 0 Regions Visited (2) 400 Robots Destroyed (9) 45 Value Destroyed (194) 194 Prototype IDs (0) 0 Alien Tech Used (0) 0 Bonus (0) 0 TOTAL SCORE: 639 Bonus ------- None Cogmind --------- Core Integrity 0/250 Matter 251/300 Energy 90/100 System Corruption 0% Temperature Cool (0) Movement Core (50) Location -10/Mines Parts ------- > --- POWER (1) -------- (None) > --- PROPULSION (2) --- (None) > --- UTILITY (2) ------ (None) > --- WEAPON (2) ------- (None) > --- INVENTORY (5) ---- Light Ion Engine Compact Wheel Medium Matter Pod (21) Structural Scanner Targeting Computer Peak State ------------ > --- POWER ------------ Light Ion Engine > --- PROPULSION ------- Aluminum Leg Aluminum Leg > --- UTILITY ---------- Small Storage Unit Light Armor Plating > --- WEAPON ----------- Assault Rifle Light Assault Rifle > --- INVENTORY -------- Light Ion Engine Light Treads Light Treads Wheel Compact Wheel Light Assault Rifle [Rating: 7] Favorites ----------- Power Light Ion Engine Engine Light Ion Engine Propulsion Aluminum Leg Leg Aluminum Leg Utility Small Storage Unit Storage Small Storage Unit Protection Light Armor Plating Weapon Light Assault Rifle Ballistic Gun Light Assault Rifle Build | -11 -10 -10 ------- Run | Scr Mat Min Slots Evolved . | . . . Power . | . . . Propulsion . | . . . Utility . | . . . Weapon . | . . . Parts Attached 9 | 6 2 1 Power 2 | 1 1 . Engine 2 | 1 1 . Core . | . . . Reactor . | . . . Propulsion 2 | 2 . . Treads . | . . . Leg 2 | 2 . . Wheel . | . . . Hover . | . . . Flight . | . . . Utility 2 | 1 1 . Device . | . . . Storage 1 | 1 . . Processor . | . . . Hackware . | . . . Protection 1 | . 1 . Artifact . | . . . Weapon 3 | 2 . 1 Energy Gun . | . . . Energy Cannon . | . . . Ballistic Gun 3 | 2 . 1 Ballistic Cannon . | . . . Launcher . | . . . Special Weapon . | . . . Impact Weapon . | . . . Slashing Weapon . | . . . Piercing Weapon . | . . . Special Melee Weapon . | . . . Unidentified Prototypes . | . . . Parts Lost 7 | . . 7 Power 1 | . . 1 Propulsion 2 | . . 2 Utility 1 | . . 1 Weapon 3 | . . 3 Highest Loss Streak 7 | . . 7 Average Slot Usage (%) 97 | . 98 97 Engine 14 | . 14 14 Leg 27 | . 28 27 Storage 14 | . 14 14 Protection 12 | . 12 13 Ballistic Gun 27 | . 28 27 Naked Turns . | . . . Heaviest Build 16 | 11 16 16 Greatest Support 20 | 20 20 20 Greatest Overweight (x) 1 | 1 . . Average Overweight (x) . | . . . Largest Inventory Capacity 8 | 8 8 8 Average Capacity 7 | 6 8 8 Most Carried 8 | 6 8 7 Average Carried 6 | 4 6 6 Final Capacity 8 | 8 8 5 Final Carried 7 | 6 7 5 Class Distribution -------------------- 100% | Mutant Dominant Class ---------------- Mutant | -10/Materials Mutant | -10/Mines Resources | -11 -10 -10 ----------- Run | Scr Mat Min Matter Collected 351 | 239 112 . Remotely . | . . . Salvage Created 330 | . 276 54 Parts 15 | . 10 5 Haulers Intercepted 1 | . 1 . Recyclers Shooed 2 | . 2 . Parts Field Recycled . | . . . Retrieved Matter . | . . . Parts Self-Destructed . | . . . Prevented . | . . . Kills | -11 -10 -10 ------- Run | Scr Mat Min Combat Hostiles Destroyed 7 | . 4 3 Guns 5 | . 4 1 AOE 2 | . . 2 Classes Destroyed 4 | . 3 1 Hauler 1 | . 1 . Recycler 1 | . 1 . Swarmer 3 | . . 3 Grunt 4 | . 4 . Best Kill Streak 3 | . 2 3 Combat Bots Only 3 | . 2 3 Max Kills in Single Turn 3 | . 1 3 Gunslinging . | . . . Exploded 2 | . . 2 Melee . | . . . Uniques/NPCs Destroyed . | . . . Combat | -11 -10 -10 -------- Run | Scr Mat Min Damage Taken 972 | . 160 812 Core 260 | . . 260 Absorbed by Shields . | . . . Core Remaining (%) 100 | 100 . . Volleys Fired 35 | . 23 12 Largest 2 | . 2 2 Hottest 40 | . 40 40 Shots Fired 68 | . 46 22 Gun 68 | . 46 22 Cannon . | . . . Launcher . | . . . Special . | . . . Kinetic 68 | . 46 22 Thermal . | . . . Explosive . | . . . Electromagnetic . | . . . Robot Hit Streak 10 | . 10 4 Robot Miss Streak 4 | . 3 4 Penetration Max . | . . . Secondary Targets 1 | . . 1 Max Gunslinging Chain 1 | . . 1 Shots Hit Robots 44 | . 33 11 Core Hits 23 | . 13 10 Critical Kills . | . . . Critical Parts Destroyed . | . . . Critical Strikes . | . . . Melee Attacks . | . . . Impact . | . . . Slashing . | . . . Piercing . | . . . Sneak Attacks . | . . . Combat Hostiles . | . . . Follow-up Attacks . | . . . Damage Inflicted 566 | . 340 226 Guns 486 | . 339 147 Cannons . | . . . Explosions 79 | . . 79 Melee . | . . . Ramming 1 | . 1 . Kinetic 486 | . 339 147 Thermal . | . . . Explosive . | . . . Electromagnetic 79 | . . 79 Impact . | . . . Slashing . | . . . Piercing . | . . . Highest Corruption . | . . . Average Corruption . | . . . Corruption Purged . | . . . Overload Shots . | . . . Overflow Damage . | . . . Projectiles . | . . . Explosions . | . . . Melee . | . . . Knockbacks . | . . . Impact . | . . . Kinetic . | . . . Secondary . | . . . Self-Inflicted Damage 55 | . 41 14 Shots 4 | . 2 2 Rammed . | . . . Targets Rammed 1 | . 1 . Kicked 1 | . 1 . Crushed . | . . . Highest Temperature 25 | . 25 6 Average Temperature 6 | . 7 4 Received Heat Transfer 66 | . 66 . Siege Activations . | . . . Robots Corrupted . | . . . Combat Hostiles . | . . . Parts Fried . | . . . Impact Corruptions . | . . . Robots Melted . | . . . Combat Hostiles . | . . . Parts Melted . | . . . Heat Transferred . | . . . Parts Sabotaged . | . . . Parts Stolen . | . . . Parts Stripped . | . . . Power Chain Reactions . | . . . Missiles Intercepted . | . . . Alert | -11 -10 -10 ------- Run | Scr Mat Min Peak Influence . | . . . Initial 70 | . . 70 Average . | . . . Maximum Alert Level . | . . . Low Security (%) 100 | 100 100 100 Level 1 . | . . . Level 2 . | . . . Level 3 . | . . . Level 4 . | . . . Level 5 . | . . . High Security . | . . . Max Security . | . . . Squads Dispatched 3 | . 3 . Investigation . | . . . Extermination . | . . . Reinforcement 3 | . 3 . Assault . | . . . Garrison . | . . . Intercept . | . . . Construction Impeded . | . . . Haulers Reinforced . | . . . Active Scanning Responses . | . . . Cargo Convoy Interrupts . | . . . Stealth | -11 -10 -10 --------- Run | Scr Mat Min Distress Signals . | . . . Communications Jammed . | . . . Distress Signals . | . . . Times Spotted 34 | . 10 24 Peak Tracking Total 20 | . 4 20 Tactical Retreats . | . . . Traps | -11 -10 -10 ------- Run | Scr Mat Min Traps Triggered . | . . . Indirectly . | . . . Trap Hack Attempts . | . . . Triggered . | . . . Disarmed . | . . . Reprogrammed . | . . . Reused . | . . . Traps Extracted . | . . . Installed . | . . . Triggered . | . . . Machines | -11 -10 -10 ---------- Run | Scr Mat Min Machines Disabled 2 | . 2 . Max in Single Turn 1 | . 1 . Machines Sabotaged . | . . . Garrisons Compromised . | . . . Overloaded Fab Kills . | . . . Fab Network Shutdowns . | . . . Hacking | -11 -10 -10 --------- Run | Scr Mat Min Machines Accessed . | . . . Terminals . | . . . Fabricators . | . . . Repair Stations . | . . . Recycling Units . | . . . Scanalyzers . | . . . Garrison Access . | . . . Total Hacks . | . . . Successful . | . . . Failed . | . . . Catastrophic . | . . . Database Lockouts . | . . . Manual . | . . . Terminals . | . . . Fabricators . | . . . Repair Stations . | . . . Recycling Units . | . . . Scanalyzers . | . . . Garrison Access . | . . . Terminal Hacks . | . . . Fabricator Hacks . | . . . Repair Station Hacks . | . . . Recycling Unit Hacks . | . . . Scanalyzer . | . . . Garrison Access Hacks . | . . . Unauthorized Hacks . | . . . Terminals . | . . . Fabricators . | . . . Repair Stations . | . . . Recycling Units . | . . . Scanalyzers . | . . . Garrison Access . | . . . Data Cores Recovered . | . . . Used . | . . . Hacking Detections . | . . . Full Trace Events . | . . . Feedback Events . | . . . Feedback Blocked . | . . . Robot Schematics Acquired . | . . . Robots Built . | . . . Matter . | . . . Time . | . . . Total Robot Build Rating . | . . . Part Schematics Acquired . | . . . Parts Built . | . . . Matter . | . . . Time . | . . . Total Part Build Rating . | . . . Parts Repaired . | . . . Time . | . . . Parts Recycled . | . . . Recycled Matter . | . . . Retrieved Matter . | . . . Retrieved Components . | . . . Parts Scanalyzed . | . . . Part Schematics Acquired . | . . . Parts Damaged . | . . . Bothacking | -11 -10 -10 ------------ Run | Scr Mat Min Used RIF Installer . | . . . Robots Hacked . | . . . Non-combat . | . . . Combat . | . . . Robot Hacks Applied . | . . . Relay Couplers Released . | . . . Robots Rewired . | . . . Allies Hacked . | . . . Hacks Repelled . | . . . Allies | -11 -10 -10 -------- Run | Scr Mat Min Total Allies . | . . . Largest Group . | . . . Highest-Rated Group . | . . . Highest-Rated Ally . | . . . Total Orders . | . . . Ally Attacks . | . . . Total Damage . | . . . Kills . | . . . Allies Corrupted . | . . . Allies Melted . | . . . Intel | -11 -10 -10 ------- Run | Scr Mat Min Robot Analysis Total . | . . . Derelict Logs Recovered . | . . . Drone Launches . | . . . Drone Recoveries . | . . . Exploration | -11 -10 -10 ------------- Run | Scr Mat Min Turns Passed 621 | 71 398 152 Spaces Moved 400 | 44 259 97 Core 5 | 5 . . Treads . | . . . Legs 395 | 39 259 97 Wheels . | . . . Hover . | . . . Flight . | . . . Fastest Speed 50 | 50 120 120 Average Speed 120 | 128 120 120 Slowest Speed 200 | 200 120 120 Overloaded Moves . | . . . Propulsion Burnouts . | . . . Robots Hopped . | . . . Cave-ins Triggered . | . . . Exploration Rate (%) 21 | 5 26 33 Regions Visited 2 Branch Regions 1 Pre-discovered Areas . | . . . Known Exits Taken . | . . . Unknown Exits Taken 2 | 1 1 . Scrap Searched . | . . . Spaces Dug . | . . . Terrain Destroyed 101 | . 93 8 Melee . | . . . Projectile . | . . . AOE 101 | . 93 8 Terrain Rammed . | . . . Walls Destroyed . | . . . Machines Disabled . | . . . Actions | -11 -10 -10 --------- Run | Scr Mat Min Total 474 | 55 305 114 Wait 18 | . 15 3 Move 398 | 43 258 97 Hop . | . . . Pick Up 9 | 6 3 . Fast Attach 7 | 6 1 . Attach 1 | . . 1 Detach . | . . . Swap 1 | . 1 . Drop 4 | . 3 1 Fire 35 | . 23 12 Melee . | . . . Ram . | . . . Kick 1 | . 1 . Crush . | . . . Escape Stasis . | . . . Rewire . | . . . Trap . | . . . Miscellaneous . | . . . Route ------- -11/Scrapyard -10/Materials -10/Mines (discovered 1 exit: [*Mat]) History --------- Turn | Location | Event 10 | -11/Scrapyard | Discovered new exit (range 15) 72 | -11/Scrapyard | Entered Materials 158 | -10/Materials | Discovered new exit (range 10) 301 | -10/Materials | Build established: Mutant 470 | -10/Materials | Entered Mines 526 | -10/Mines | Discovered new exit (range 8) 579 | -10/Mines | Assembled infested the area 584 | -10/Mines | Assisted by a Guerilla fighting off Assembled 617 | -10/Mines | Core integrity fell below 50% 621 | -10/Mines | Core integrity fell below 20% 622 | -10/Mines | Destroyed by D-53 Grenadier with Mini Grenade Launcher Last Messages --------------- 00587_ as-45284 destroyed. 00587_ as-94249 destroyed. 00587_ as-87745 destroyed. 00587_ as-82451 destroyed. 00589_ The unstable cave ceiling collapses. 00590_ H3-60N(h) heat spikes uncontrollably. 00592_ The unstable cave ceiling collapses. 00606_ HV Slug penetrates D-53 Grenadier. 00608_ Assault Rifle destroyed. 00610_ Lgt. Armor Plating destroyed. 00612_ The unstable cave ceiling collapses. 00616_ Aluminum Leg destroyed. 00617_ The unstable cave ceiling collapses. 00618_ Lgt. Assault Rifle destroyed. 00619_ The unstable cave ceiling collapses. 00620_ Ion Engine destroyed. 00620_ Aluminum Leg destroyed. 00621_ The unstable cave ceiling collapses. 00622_ Dropped Sml. Storage Unit. 00622_ Lgt. Assault Rifle destroyed. Map ----- +----------------------------------------------------+ | ####### #???????????????????????????????????????? | | ??##### #???????????????????????????????????????? | | ### #???????????????????????????????????????? | | # #####???????????????????????????????????????? | | # #???????????????????????????????????????????? | | # ###???????????????? ????????????????????????? | | # ##????????????????# ??????????????????????? | | # ##???????????????" " ???????????????????? | | # ##?????????????? #?????????????????? | | ## ##????????????? " #?????????????????? | | ?## ##?????????####" ##????????????????? | | ??# ##????????# # #????????????????? | | ??# ##???????# #?????????????????? | | ??# #???????# # #??????????????????? | | ??# #??###### # "???????????????????? | | ??# """ #?## ## #????????????????????? | | ?## """ #?# #?????????????????????? | | ?# """ ### #?????????????????????? | | ?# % #?????????????????????? | | ?# dd ######??????????????????? | | ?## #### ### ##?????????????????? | | ??#####??# ### % ##????????????????? | | ?????????# ### ##???????????????? | | ?????????#### ##?# #???????????????? | | ????????????## ##??# #???????????????? | | ?????????????####???# @ #???????????????? | | ????????????????????# ##???????????????? | | ????????????????????# ###????????????????? | | ????????????????????## ##??????????????????? | | ?????????????????????## ##???????????????????? | | ??????????????????????#######????????????????????? | | ?????????????????????????????????????????????????? | | ?????????????????????????????????????????????????? | | | | | | | | | | | | | | | | | | | | | | | | | | | | | | | | | | | +----------------------------------------------------+ Best States ------------- Heat Dissipation 25 Energy Generation 10 Energy Capacity 250 Matter Stores 300 Matter Capacity 300 Sight Range 16 Terrain Scan Density 10 Armor Coverage 150 Evasion (%) 55 Item Schematics ----------------- None Robot Schematics ------------------ None Fabricated ------------ Nothing Alien Tech Used ----------------- None Achievements -------------- None Challenges ------------ None Game ------ Seed SpliceCorruptionCorpse Manual? 0 Play Time 00:06:40 Cumulative 174.8 hours Start 2021.12.05 @ 11:30:22 End 2021.12.05 @ 11:36:13 Sessions 1 Manual Loads 0 Difficulty Rogue Special Mode AFD2021/Volatile Game No. 121 Rogue 121 Adventurer 0 Explorer 0 Win Type - Total 3 Types 3/0/0/0/0/0/0/0/0 Lore% 57 Gallery% 74 Achievement% 52 Wizard Run 0 Options --------- ASCII 0 Keyboard 1 Movement Numpad Keybinds 0 Fullscreen 1 Font 18/SmallcapsGlow Map View 76x50 Tactical HUD 1 Map Filters NONE Filters NONE Steam 1 RUN: 5f71541b-d080-4e6f-b6a0-70d29e5ad08c